[Event "Live Chess"]
[Site "Chess.com"]
[Date "2024.06.02"]
[Round "-"]
[White "best137"]
[Black "upoe610"]
[Result "1/2-1/2"]
[WhiteElo "1527"]
[BlackElo "2147"]
[TimeControl "300"]
[EndTime "2:21:08 PDT"]
[Termination "Game drawn by repetition"]

1. c4 {[%clk 0:04:58.6]} 1... c5 {[%clk 0:04:58.1]} 2. Nc3 {[%clk 0:04:57.9]}
2... Nc6 {[%clk 0:04:57.3]} 3. Nf3 {[%clk 0:04:56.9]} 3... g6 {[%clk 0:04:56.7]}
4. d4 {[%clk 0:04:55.8]} 4... cxd4 {[%clk 0:04:50.4]} 5. Nxd4 {[%clk 0:04:53.7]}
5... Nf6 {[%clk 0:04:49.9]} 6. Nxc6 {[%clk 0:04:46.1]} 6... bxc6 {[%clk
0:04:48.5]} 7. b3 {[%clk 0:04:42.3]} 7... Bg7 {[%clk 0:04:45.2]} 8. Bb2 {[%clk
0:04:39.4]} 8... O-O {[%clk 0:04:44.3]} 9. Qc2 {[%clk 0:04:26.9]} 9... d5 {[%clk
0:04:42.9]} 10. O-O-O {[%clk 0:04:22.4]} 10... Bf5 {[%clk 0:04:40.7]} 11. e4
{[%clk 0:04:07.6]} 11... Nxe4 {[%clk 0:04:36.3]} 12. Nxe4 {[%clk 0:04:06.1]}
12... Bxe4 {[%clk 0:04:35.2]} 13. Bd3 {[%clk 0:03:47.6]} 13... Bxb2+ {[%clk
0:04:31.1]} 14. Kxb2 {[%clk 0:03:42.6]} 14... Bxd3 {[%clk 0:04:29.9]} 15. Rxd3
{[%clk 0:03:41.9]} 15... e6 {[%clk 0:04:28.7]} 16. h4 {[%clk 0:03:36.1]} 16...
Qf6+ {[%clk 0:04:27]} 17. Kb1 {[%clk 0:03:29.3]} 17... a5 {[%clk 0:04:25.1]} 18.
h5 {[%clk 0:03:20.2]} 18... a4 {[%clk 0:04:23.7]} 19. hxg6 {[%clk 0:03:18.2]}
19... fxg6 {[%clk 0:04:20.7]} 20. cxd5 {[%clk 0:03:11.6]} 20... axb3 {[%clk
0:04:19]} 21. Rxb3 {[%clk 0:02:55.9]} 21... cxd5 {[%clk 0:04:18.1]} 22. Qc7
{[%clk 0:02:40.7]} 22... Qf5+ {[%clk 0:04:08.5]} 23. Ka1 {[%clk 0:02:24.2]}
23... Qf6+ {[%clk 0:04:02.1]} 24. Kb1 {[%clk 0:02:19.3]} 24... Rf7 {[%clk
0:03:58.6]} 25. Rb8+ {[%clk 0:02:05.2]} 25... Rxb8+ {[%clk 0:03:56.4]} 26. Qxb8+
{[%clk 0:02:03.5]} 26... Kg7 {[%clk 0:03:56.3]} 27. Qb2 {[%clk 0:01:57]} 27...
Qxb2+ {[%clk 0:03:52.8]} 28. Kxb2 {[%clk 0:01:56.9]} 28... Rxf2+ {[%clk
0:03:52.2]} 29. Kb3 {[%clk 0:01:55]} 29... Rxg2 {[%clk 0:03:51.2]} 30. a4 {[%clk
0:01:52.8]} 30... Rg3+ {[%clk 0:03:48.1]} 31. Kb4 {[%clk 0:01:49.4]} 31... Rg4+
{[%clk 0:03:46]} 32. Kb5 {[%clk 0:01:45.4]} 32... h5 {[%clk 0:03:44.7]} 33. a5
{[%clk 0:01:44.3]} 33... Rf4 {[%clk 0:03:41.4]} 34. a6 {[%clk 0:01:42.3]} 34...
Rf8 {[%clk 0:03:40.4]} 35. Kb6 {[%clk 0:01:37.8]} 35... d4 {[%clk 0:03:29.3]}
36. a7 {[%clk 0:01:28.6]} 36... e5 {[%clk 0:03:27.2]} 37. Rc1 {[%clk 0:01:24.1]}
37... Kh6 {[%clk 0:03:25.2]} 38. Kb7 {[%clk 0:01:20.2]} 38... Kg5 {[%clk
0:03:20.6]} 39. Rc8 {[%clk 0:01:15.2]} 39... Rf7+ {[%clk 0:03:18.7]} 40. Rc7
{[%clk 0:01:13.4]} 40... Rf8 {[%clk 0:03:18.2]} 41. Rc8 {[%clk 0:01:12.3]} 41...
Rf7+ {[%clk 0:03:14.3]} 42. Rc7 {[%clk 0:01:10.9]} 42... Rf8 {[%clk 0:03:13.7]}
43. Rc8 {[%clk 0:01:10]} 1/2-1/2

[Event "Live Chess"]
[Site "Chess.com"]
[Date "2024.06.02"]
[Round "-"]
[White "Tatarinov_Maxim"]
[Black "TigerTank70"]
[Result "1-0"]
[WhiteElo "2284"]
[BlackElo "2226"]
[TimeControl "300"]
[EndTime "2:21:11 PDT"]
[Termination "Tatarinov_Maxim won by checkmate"]

1. Nf3 {[%clk 0:04:57]} 1... d6 {[%clk 0:04:58.7]} 2. g3 {[%clk 0:04:56.4]} 2...
e5 {[%clk 0:04:57.3]} 3. Bg2 {[%clk 0:04:55.8]} 3... Bg4 {[%clk 0:04:54.3]} 4.
O-O {[%clk 0:04:54.5]} 4... Be7 {[%clk 0:04:52.1]} 5. c4 {[%clk 0:04:53.6]} 5...
Qd7 {[%clk 0:04:50.2]} 6. Re1 {[%clk 0:04:49.8]} 6... Nc6 {[%clk 0:04:49.1]} 7.
Nc3 {[%clk 0:04:48.4]} 7... Nf6 {[%clk 0:04:47.1]} 8. Nd5 {[%clk 0:04:37.2]}
8... e4 {[%clk 0:04:39.2]} 9. Nxe7 {[%clk 0:04:06.8]} 9... Qxe7 {[%clk
0:04:30.3]} 10. Ng5 {[%clk 0:04:05]} 10... h6 {[%clk 0:04:23]} 11. Nh3 {[%clk
0:03:50.8]} 11... g5 {[%clk 0:04:13.5]} 12. f3 {[%clk 0:03:49.3]} 12... Be6
{[%clk 0:04:06.2]} 13. fxe4 {[%clk 0:03:41.8]} 13... Bxc4 {[%clk 0:04:01.1]} 14.
d3 {[%clk 0:03:41]} 14... Be6 {[%clk 0:03:59.5]} 15. Nf2 {[%clk 0:03:38.7]}
15... O-O-O {[%clk 0:03:56.8]} 16. Qa4 {[%clk 0:03:32.6]} 16... Kb8 {[%clk
0:03:55.2]} 17. Be3 {[%clk 0:03:31.1]} 17... Bd7 {[%clk 0:03:39.7]} 18. Rac1
{[%clk 0:03:14.5]} 18... a6 {[%clk 0:03:36.1]} 19. Qa3 {[%clk 0:03:04]} 19...
Ng4 {[%clk 0:03:14]} 20. Nxg4 {[%clk 0:02:58.9]} 20... Bxg4 {[%clk 0:03:13.8]}
21. Rxc6 {[%clk 0:02:50.4]} 21... bxc6 {[%clk 0:03:10.3]} 22. Qxa6 {[%clk
0:02:48.8]} 22... Bc8 {[%clk 0:03:03.7]} 23. Qa7# {[%clk 0:02:46.2]} 1-0

[Event "Live Chess"]
[Site "Chess.com"]
[Date "2024.06.02"]
[Round "-"]
[White "CarmelJane"]
[Black "nigelst"]
[Result "1/2-1/2"]
[WhiteElo "2051"]
[BlackElo "1730"]
[TimeControl "300"]
[EndTime "2:21:16 PDT"]
[Termination "Game drawn by repetition"]

1. Nf3 {[%clk 0:04:57.6]} 1... Nf6 {[%clk 0:04:58]} 2. b3 {[%clk 0:04:55.9]}
2... g6 {[%clk 0:04:56.9]} 3. Bb2 {[%clk 0:04:55.5]} 3... Bg7 {[%clk 0:04:55.6]}
4. d3 {[%clk 0:04:53.5]} 4... O-O {[%clk 0:04:52.8]} 5. Nbd2 {[%clk 0:04:52.8]}
5... d6 {[%clk 0:04:51.7]} 6. e4 {[%clk 0:04:50.5]} 6... e5 {[%clk 0:04:49.8]}
7. g3 {[%clk 0:04:49.3]} 7... Bg4 {[%clk 0:04:47.6]} 8. Bg2 {[%clk 0:04:48.8]}
8... Nbd7 {[%clk 0:04:41.2]} 9. O-O {[%clk 0:04:47.8]} 9... Rc8 {[%clk
0:04:36.2]} 10. h3 {[%clk 0:04:46.8]} 10... Be6 {[%clk 0:04:33.3]} 11. Ng5
{[%clk 0:04:15.5]} 11... Qe7 {[%clk 0:04:27.1]} 12. f4 {[%clk 0:04:09.1]} 12...
exf4 {[%clk 0:04:23.4]} 13. gxf4 {[%clk 0:04:06.3]} 13... Nb6 {[%clk 0:04:09.9]}
14. Rb1 {[%clk 0:03:15.8]} 14... Nh5 {[%clk 0:04:01.1]} 15. Bxg7 {[%clk
0:03:01.5]} 15... Nxg7 {[%clk 0:03:49]} 16. Kh2 {[%clk 0:02:40.1]} 16... f6
{[%clk 0:03:42.3]} 17. Nxe6 {[%clk 0:02:35.6]} 17... Qxe6 {[%clk 0:03:40.9]} 18.
Nc4 {[%clk 0:02:22.8]} 18... d5 {[%clk 0:03:33.8]} 19. Nxb6 {[%clk 0:02:20.5]}
19... axb6 {[%clk 0:03:25.3]} 20. exd5 {[%clk 0:02:18.7]} 20... Qd6 {[%clk
0:03:18]} 21. Qf3 {[%clk 0:02:02.5]} 21... Nf5 {[%clk 0:03:15.2]} 22. c3 {[%clk
0:01:53.9]} 22... Rce8 {[%clk 0:03:10.4]} 23. Rfe1 {[%clk 0:01:52.2]} 23... Nh4
{[%clk 0:03:01.6]} 24. Qg3 {[%clk 0:01:12.2]} 24... Nxg2 {[%clk 0:02:58.8]} 25.
Kxg2 {[%clk 0:01:12.1]} 25... Qxd5+ {[%clk 0:02:57.2]} 26. Kh2 {[%clk
0:01:10.9]} 26... Rd8 {[%clk 0:02:48.5]} 27. d4 {[%clk 0:01:09.1]} 27... Rfe8
{[%clk 0:02:45.4]} 28. Rxe8+ {[%clk 0:00:55.6]} 28... Rxe8 {[%clk 0:02:43.3]}
29. Re1 {[%clk 0:00:55.3]} 29... Re4 {[%clk 0:02:36.4]} 30. Qg2 {[%clk
0:00:31.4]} 30... f5 {[%clk 0:02:32.2]} 31. Rxe4 {[%clk 0:00:28.7]} 31... fxe4
{[%clk 0:02:26.5]} 32. Qg5 {[%clk 0:00:27.4]} 32... Qe6 {[%clk 0:02:17.9]} 33.
Qe5 {[%clk 0:00:25.7]} 33... Qc6 {[%clk 0:02:04.3]} 34. d5 {[%clk 0:00:22.1]}
34... Qc5 {[%clk 0:01:56.8]} 35. Qe6+ {[%clk 0:00:19.5]} 35... Kg7 {[%clk
0:01:54.5]} 36. Qxe4 {[%clk 0:00:18.6]} 36... Qf2+ {[%clk 0:01:52.7]} 37. Kh1
{[%clk 0:00:16.5]} 37... Qf1+ {[%clk 0:01:50.4]} 38. Kh2 {[%clk 0:00:15.8]}
38... Qf2+ {[%clk 0:01:49.4]} 39. Kh1 {[%clk 0:00:15.5]} 39... Qf1+ {[%clk
0:01:48.5]} 40. Kh2 {[%clk 0:00:15]} 40... Qf2+ {[%clk 0:01:46.7]} 1/2-1/2

[Event "Live Chess"]
[Site "Chess.com"]
[Date "2024.06.02"]
[Round "-"]
[White "grillage"]
[Black "Delacorta"]
[Result "1-0"]
[WhiteElo "1866"]
[BlackElo "1521"]
[TimeControl "300"]
[EndTime "2:21:17 PDT"]
[Termination "grillage won by resignation"]

1. d4 {[%clk 0:04:57.6]} 1... Nf6 {[%clk 0:04:57.3]} 2. Nf3 {[%clk 0:04:56.4]}
2... g6 {[%clk 0:04:53.7]} 3. g3 {[%clk 0:04:52.6]} 3... Bg7 {[%clk 0:04:52.5]}
4. Bg2 {[%clk 0:04:51.7]} 4... d6 {[%clk 0:04:48]} 5. c4 {[%clk 0:04:50.6]} 5...
O-O {[%clk 0:04:44.5]} 6. O-O {[%clk 0:04:50]} 6... Re8 {[%clk 0:04:40.1]} 7.
Nc3 {[%clk 0:04:44.4]} 7... c6 {[%clk 0:04:34.3]} 8. b3 {[%clk 0:04:34.8]} 8...
Nbd7 {[%clk 0:04:32.4]} 9. Bb2 {[%clk 0:04:32.9]} 9... Nf8 {[%clk 0:04:28.1]}
10. Qc2 {[%clk 0:04:31.2]} 10... e5 {[%clk 0:04:21.6]} 11. dxe5 {[%clk
0:04:28.9]} 11... dxe5 {[%clk 0:04:20.3]} 12. Rad1 {[%clk 0:04:25.8]} 12... Qc7
{[%clk 0:04:17.8]} 13. Ne4 {[%clk 0:04:19]} 13... Nxe4 {[%clk 0:04:07.8]} 14.
Qxe4 {[%clk 0:04:16.4]} 14... Bf5 {[%clk 0:04:03.5]} 15. Qe3 {[%clk 0:04:05.8]}
15... Rad8 {[%clk 0:03:48.9]} 16. Nh4 {[%clk 0:04:02.1]} 16... Bc8 {[%clk
0:03:35.8]} 17. Qxa7 {[%clk 0:03:55.2]} 17... Rxd1 {[%clk 0:03:14.6]} 18. Rxd1
{[%clk 0:03:53.5]} 18... Rd8 {[%clk 0:03:13]} 19. Rxd8 {[%clk 0:03:51.1]} 19...
Qxd8 {[%clk 0:03:12]} 20. Qe3 {[%clk 0:01:52.7]} 20... Qd1+ {[%clk 0:03:06.5]}
21. Bf1 {[%clk 0:01:51.9]} 21... Bh3 {[%clk 0:02:59.7]} 22. Ng2 {[%clk
0:01:51.1]} 22... Nd7 {[%clk 0:02:30.5]} 23. Qc1 {[%clk 0:01:46.5]} 23... Qxc1
{[%clk 0:02:21.7]} 24. Bxc1 {[%clk 0:01:44.8]} 24... e4 {[%clk 0:02:18.1]} 25.
Nf4 {[%clk 0:01:37.7]} 25... Bxf1 {[%clk 0:02:15.3]} 26. Kxf1 {[%clk 0:01:37.1]}
26... f5 {[%clk 0:02:08]} 27. Be3 {[%clk 0:01:32]} 27... Nf6 {[%clk 0:02:05.8]}
28. Ne6 {[%clk 0:01:29.2]} 28... Ng4 {[%clk 0:01:59.2]} 29. Nd8 {[%clk
0:01:13.5]} 29... Nxe3+ {[%clk 0:01:52.3]} 30. fxe3 {[%clk 0:01:12.3]} 30... Bh6
{[%clk 0:01:34.3]} 31. Kf2 {[%clk 0:01:10.1]} 31... Bf8 {[%clk 0:01:18.1]} 32.
Nxb7 {[%clk 0:01:08.6]} 32... Be7 {[%clk 0:01:14]} 33. a4 {[%clk 0:01:05.1]}
33... Bb4 {[%clk 0:01:04.6]} 34. a5 {[%clk 0:01:03.5]} 34... Be7 {[%clk
0:00:54.4]} 35. a6 {[%clk 0:01:02.4]} 1-0

[Event "Live Chess"]
[Site "Chess.com"]
[Date "2024.06.02"]
[Round "-"]
[White "JohanKjeldahl"]
[Black "raimundklein"]
[Result "1-0"]
[WhiteElo "1821"]
[BlackElo "1558"]
[TimeControl "300"]
[EndTime "2:21:23 PDT"]
[Termination "JohanKjeldahl won by resignation"]

1. e4 {[%clk 0:04:56.7]} 1... c6 {[%clk 0:04:57.9]} 2. d4 {[%clk 0:04:54.1]}
2... d5 {[%clk 0:04:56.9]} 3. Nc3 {[%clk 0:04:53.4]} 3... dxe4 {[%clk
0:04:55.1]} 4. Nxe4 {[%clk 0:04:52.3]} 4... Bf5 {[%clk 0:04:54.3]} 5. Ng3 {[%clk
0:04:51.3]} 5... Bg6 {[%clk 0:04:53.6]} 6. Nf3 {[%clk 0:04:50.5]} 6... Nf6
{[%clk 0:04:52.5]} 7. h4 {[%clk 0:04:49.6]} 7... Nh5 {[%clk 0:04:51.2]} 8. Nxh5
{[%clk 0:04:42]} 8... Bxh5 {[%clk 0:04:51.1]} 9. Be2 {[%clk 0:04:38.4]} 9... Nd7
{[%clk 0:04:46.4]} 10. Bf4 {[%clk 0:04:36.9]} 10... e6 {[%clk 0:04:40.3]} 11. c3
{[%clk 0:04:33.4]} 11... Be7 {[%clk 0:04:34.7]} 12. Ng5 {[%clk 0:04:22]} 12...
Bxe2 {[%clk 0:04:31.4]} 13. Qxe2 {[%clk 0:04:21.2]} 13... h6 {[%clk 0:04:26.6]}
14. Nf3 {[%clk 0:04:19]} 14... O-O {[%clk 0:04:18.7]} 15. O-O-O {[%clk
0:04:17.5]} 15... Nf6 {[%clk 0:04:17.2]} 16. Ne5 {[%clk 0:04:13.1]} 16... Nd5
{[%clk 0:04:12.7]} 17. Bd2 {[%clk 0:04:11.7]} 17... b5 {[%clk 0:04:11]} 18. g4
{[%clk 0:04:07.5]} 18... Qc7 {[%clk 0:04:06.5]} 19. g5 {[%clk 0:04:05.2]} 19...
Rfb8 {[%clk 0:03:05.7]} 20. gxh6 {[%clk 0:04:02.3]} 20... g6 {[%clk 0:02:58.8]}
21. h5 {[%clk 0:03:59.8]} 21... gxh5 {[%clk 0:02:33.6]} 22. Rdg1+ {[%clk
0:03:57.2]} 22... Kf8 {[%clk 0:02:27.5]} 23. Qxh5 {[%clk 0:03:55.4]} 23... Bf6
{[%clk 0:02:25.5]} 24. h7 {[%clk 0:03:50]} 1-0

[Event "Live Chess"]
[Site "Chess.com"]
[Date "2024.06.02"]
[Round "-"]
[White "seasidecastle27"]
[Black "Queensandpawns"]
[Result "0-1"]
[WhiteElo "1918"]
[BlackElo "2277"]
[TimeControl "300"]
[EndTime "2:22:12 PDT"]
[Termination "Queensandpawns won by checkmate"]

1. d4 {[%clk 0:04:57.8]} 1... e5 {[%clk 0:04:59.9]} 2. e4 {[%clk 0:04:55.6]}
2... exd4 {[%clk 0:04:58.9]} 3. c3 {[%clk 0:04:54]} 3... d5 {[%clk 0:04:57.2]}
4. exd5 {[%clk 0:04:51.3]} 4... Qxd5 {[%clk 0:04:57.1]} 5. Nf3 {[%clk
0:04:48.4]} 5... Bg4 {[%clk 0:04:55.2]} 6. Be2 {[%clk 0:04:46.9]} 6... Nc6
{[%clk 0:04:52.5]} 7. cxd4 {[%clk 0:04:40.8]} 7... O-O-O {[%clk 0:04:50.7]} 8.
Nc3 {[%clk 0:04:38]} 8... Bb4 {[%clk 0:04:47.8]} 9. O-O {[%clk 0:04:36.4]} 9...
Qh5 {[%clk 0:04:44.4]} 10. d5 {[%clk 0:04:31.6]} 10... Nge7 {[%clk 0:04:39.7]}
11. Qa4 {[%clk 0:04:28.8]} 11... Nxd5 {[%clk 0:04:26.3]} 12. Nxd5 {[%clk
0:04:22]} 12... Rxd5 {[%clk 0:04:26.2]} 13. Be3 {[%clk 0:04:07.5]} 13... Bd6
{[%clk 0:04:11]} 14. Bf4 {[%clk 0:03:43.1]} 14... Nd4 {[%clk 0:03:50.6]} 15.
Bxd6 {[%clk 0:03:33.4]} 15... Nxe2+ {[%clk 0:03:43.1]} 16. Kh1 {[%clk
0:03:29.3]} 16... Bxf3 {[%clk 0:03:31.8]} 17. Bxc7 {[%clk 0:03:02.6]} 17... Kxc7
{[%clk 0:03:13.7]} 18. Qc4+ {[%clk 0:02:56.3]} 18... Kb8 {[%clk 0:03:12.4]} 19.
Rac1 {[%clk 0:02:51]} 19... Bxg2+ {[%clk 0:03:05]} 20. Kxg2 {[%clk 0:02:49.7]}
20... Rg5+ {[%clk 0:03:03.8]} 21. Kh1 {[%clk 0:02:46]} 21... Qf3# {[%clk
0:03:02.9]} 0-1

[Event "Live Chess"]
[Site "Chess.com"]
[Date "2024.06.02"]
[Round "-"]
[White "Brooms1989"]
[Black "Ferrarifan27"]
[Result "0-1"]
[WhiteElo "1168"]
[BlackElo "2130"]
[TimeControl "300"]
[EndTime "2:22:20 PDT"]
[Termination "Ferrarifan27 won by resignation"]

1. e4 {[%clk 0:04:56.6]} 1... e5 {[%clk 0:04:58.4]} 2. Nc3 {[%clk 0:04:55.3]}
2... Nc6 {[%clk 0:04:51.8]} 3. Bc4 {[%clk 0:04:53.3]} 3... Bc5 {[%clk 0:04:49]}
4. Qg4 {[%clk 0:04:51.2]} 4... g6 {[%clk 0:04:47]} 5. Qf3 {[%clk 0:04:50]} 5...
Nf6 {[%clk 0:04:44.7]} 6. d3 {[%clk 0:04:47.1]} 6... Nd4 {[%clk 0:04:39.5]} 7.
Qd1 {[%clk 0:04:44.7]} 7... O-O {[%clk 0:04:37.1]} 8. Nge2 {[%clk 0:04:43.3]}
8... Kg7 {[%clk 0:04:27.4]} 9. Nxd4 {[%clk 0:04:40.2]} 9... Bxd4 {[%clk
0:04:26.2]} 10. Ne2 {[%clk 0:04:39]} 10... Bb6 {[%clk 0:04:24.4]} 11. f4 {[%clk
0:04:30.8]} 11... Ng4 {[%clk 0:04:13.6]} 12. d4 {[%clk 0:04:19.4]} 12... exd4
{[%clk 0:04:12.6]} 13. h3 {[%clk 0:04:13.4]} 13... Ne3 {[%clk 0:04:03.2]} 14.
Bxe3 {[%clk 0:04:11.9]} 14... dxe3 {[%clk 0:04:03.1]} 15. f5 {[%clk 0:04:10.2]}
15... d6 {[%clk 0:03:59]} 16. Nf4 {[%clk 0:04:03.3]} 16... Qh4+ {[%clk 0:03:53]}
0-1

[Event "Live Chess"]
[Site "Chess.com"]
[Date "2024.06.02"]
[Round "-"]
[White "wadsy27"]
[Black "Ninifu"]
[Result "1-0"]
[WhiteElo "2575"]
[BlackElo "2011"]
[TimeControl "300"]
[EndTime "2:22:25 PDT"]
[Termination "wadsy27 won by resignation"]

1. c4 {[%clk 0:04:58.8]} 1... Nf6 {[%clk 0:04:56]} 2. g3 {[%clk 0:04:58.4]} 2...
g6 {[%clk 0:04:54.5]} 3. Bg2 {[%clk 0:04:58]} 3... Bg7 {[%clk 0:04:50.5]} 4. Nc3
{[%clk 0:04:57.7]} 4... O-O {[%clk 0:04:48.2]} 5. Nf3 {[%clk 0:04:57.3]} 5... d6
{[%clk 0:04:46.8]} 6. O-O {[%clk 0:04:56.7]} 6... e5 {[%clk 0:04:45.3]} 7. d3
{[%clk 0:04:56.2]} 7... h6 {[%clk 0:04:37.9]} 8. Rb1 {[%clk 0:04:55.1]} 8... a5
{[%clk 0:04:36.3]} 9. a3 {[%clk 0:04:54.1]} 9... Re8 {[%clk 0:04:35.1]} 10. Nd2
{[%clk 0:04:52]} 10... c6 {[%clk 0:04:33.3]} 11. b4 {[%clk 0:04:51.1]} 11...
axb4 {[%clk 0:04:31.1]} 12. axb4 {[%clk 0:04:51]} 12... Na6 {[%clk 0:04:26.9]}
13. b5 {[%clk 0:04:50.1]} 13... Nb8 {[%clk 0:04:08.8]} 14. bxc6 {[%clk
0:04:47.7]} 14... bxc6 {[%clk 0:04:08.1]} 15. Bb2 {[%clk 0:04:44.8]} 15... Qc7
{[%clk 0:04:04.6]} 16. Nde4 {[%clk 0:04:42.5]} 16... Nxe4 {[%clk 0:03:58.4]} 17.
Nxe4 {[%clk 0:04:42.4]} 17... f5 {[%clk 0:03:56.5]} 18. Nc3 {[%clk 0:04:42.1]}
18... Be6 {[%clk 0:03:54.4]} 19. Ra1 {[%clk 0:04:36.6]} 19... Nd7 {[%clk
0:03:52.1]} 20. Nb5 {[%clk 0:04:21.5]} 20... Rxa1 {[%clk 0:03:43.3]} 21. Nxc7
{[%clk 0:04:19.2]} 21... Rxd1 {[%clk 0:03:41.3]} 22. Rxd1 {[%clk 0:04:17.7]}
22... Re7 {[%clk 0:03:31.3]} 23. Nxe6 {[%clk 0:04:17]} 23... Rxe6 {[%clk
0:03:30.1]} 24. Bxc6 {[%clk 0:04:16.6]} 24... Nf6 {[%clk 0:03:23]} 25. Ra1
{[%clk 0:04:15]} 25... Re7 {[%clk 0:03:08.2]} 26. Ra8+ {[%clk 0:04:12.6]} 26...
Kf7 {[%clk 0:03:02.5]} 27. Ba3 {[%clk 0:04:11.7]} 27... Rc7 {[%clk 0:02:58.7]}
28. Bb5 {[%clk 0:03:57]} 28... Ke6 {[%clk 0:02:21.4]} 29. Ra6 {[%clk 0:03:55.7]}
29... Bf8 {[%clk 0:02:15.3]} 30. c5 {[%clk 0:03:54.9]} 30... Nd7 {[%clk
0:02:00.6]} 31. Bc4+ {[%clk 0:03:53.6]} 31... Kf6 {[%clk 0:01:51.9]} 32. cxd6
{[%clk 0:03:48.6]} 32... Rb7 {[%clk 0:01:46.9]} 33. f4 {[%clk 0:03:47.6]} 33...
Rb6 {[%clk 0:01:20.7]} 34. fxe5+ {[%clk 0:03:44.6]} 34... Kxe5 {[%clk
0:01:18.3]} 35. Bb2+ {[%clk 0:03:43.5]} 35... Kxd6 {[%clk 0:01:12.8]} 36. Rxb6+
{[%clk 0:03:40.4]} 36... Nxb6 {[%clk 0:01:11.2]} 37. Ba3+ {[%clk 0:03:40]} 1-0

[Event "Live Chess"]
[Site "Chess.com"]
[Date "2024.06.02"]
[Round "-"]
[White "peteopeteo"]
[Black "AlexanderMatlak"]
[Result "0-1"]
[WhiteElo "1547"]
[BlackElo "2408"]
[TimeControl "300"]
[EndTime "2:22:28 PDT"]
[Termination "AlexanderMatlak won on time"]

1. e4 {[%clk 0:04:59.5]} 1... c5 {[%clk 0:04:58.2]} 2. a3 {[%clk 0:04:56.9]}
2... Nc6 {[%clk 0:04:56.5]} 3. b4 {[%clk 0:04:56.8]} 3... Nf6 {[%clk 0:04:55.8]}
4. Nc3 {[%clk 0:04:44.8]} 4... cxb4 {[%clk 0:04:51.2]} 5. axb4 {[%clk
0:04:44.7]} 5... Nxb4 {[%clk 0:04:49.4]} 6. Ba3 {[%clk 0:04:44]} 6... e5 {[%clk
0:04:41.8]} 7. Nf3 {[%clk 0:04:39.8]} 7... Be7 {[%clk 0:04:08.3]} 8. Nxe5 {[%clk
0:04:32]} 8... O-O {[%clk 0:04:07.1]} 9. Bc4 {[%clk 0:04:15.6]} 9... a5 {[%clk
0:03:52.5]} 10. Bxb4 {[%clk 0:04:00.4]} 10... Bxb4 {[%clk 0:03:52.4]} 11. Nd5
{[%clk 0:03:52.9]} 11... d6 {[%clk 0:03:40.6]} 12. Nxb4 {[%clk 0:03:35]} 12...
dxe5 {[%clk 0:03:37.5]} 13. Nd5 {[%clk 0:03:25.7]} 13... Nxe4 {[%clk 0:03:36.4]}
14. Qf3 {[%clk 0:03:21.3]} 14... Nd6 {[%clk 0:03:33.9]} 15. Ba2 {[%clk
0:02:51.9]} 15... Be6 {[%clk 0:03:24.6]} 16. c4 {[%clk 0:02:45.8]} 16... e4
{[%clk 0:03:22.1]} 17. Qh5 {[%clk 0:02:37.7]} 17... g6 {[%clk 0:03:08.5]} 18.
Qe5 {[%clk 0:02:31.1]} 18... Bxd5 {[%clk 0:03:07.6]} 19. cxd5 {[%clk 0:02:25.2]}
19... Re8 {[%clk 0:03:02.9]} 20. Qd4 {[%clk 0:02:17.1]} 20... Qg5 {[%clk
0:02:52.5]} 21. O-O {[%clk 0:02:14.8]} 21... Nf5 {[%clk 0:02:50.8]} 22. Qc4
{[%clk 0:02:05.9]} 22... Nh4 {[%clk 0:02:48.8]} 23. g3 {[%clk 0:01:56]} 23...
Nf3+ {[%clk 0:02:47.7]} 24. Kg2 {[%clk 0:01:55.2]} 24... Nxd2 {[%clk 0:02:46.6]}
25. Qb5 {[%clk 0:01:49]} 25... Nxf1 {[%clk 0:02:44.4]} 26. Kxf1 {[%clk 0:01:42]}
26... e3 {[%clk 0:02:40.8]} 27. Re1 {[%clk 0:01:24.1]} 27... Qh5 {[%clk
0:02:26.5]} 28. Qxb7 {[%clk 0:01:10.2]} 28... Qf3 {[%clk 0:02:18.5]} 29. Rxe3
{[%clk 0:01:01.7]} 29... Qh1+ {[%clk 0:02:11.2]} 30. Ke2 {[%clk 0:00:56.3]}
30... Rxe3+ {[%clk 0:02:10.3]} 31. fxe3 {[%clk 0:00:53.7]} 31... Qxh2+ {[%clk
0:02:09.6]} 32. Kd3 {[%clk 0:00:50.9]} 32... Rf8 {[%clk 0:02:08.5]} 33. Bc4
{[%clk 0:00:40.3]} 33... Qxg3 {[%clk 0:02:07.2]} 34. Qb5 {[%clk 0:00:34.7]}
34... Qc7 {[%clk 0:02:00.5]} 35. e4 {[%clk 0:00:28.8]} 35... Rb8 {[%clk
0:01:59.2]} 36. Qc6 {[%clk 0:00:23.9]} 36... Qxc6 {[%clk 0:01:53.1]} 37. dxc6
{[%clk 0:00:23.8]} 37... Rc8 {[%clk 0:01:52.5]} 38. Bb5 {[%clk 0:00:21]} 38...
Kf8 {[%clk 0:01:51]} 39. Kd4 {[%clk 0:00:20.4]} 39... Ke7 {[%clk 0:01:50.5]} 40.
Kd5 {[%clk 0:00:19.7]} 40... h5 {[%clk 0:01:49.1]} 41. Kc5 {[%clk 0:00:18.3]}
41... h4 {[%clk 0:01:47.1]} 42. Bf1 {[%clk 0:00:16.4]} 42... a4 {[%clk 0:01:45]}
43. Kb4 {[%clk 0:00:15]} 43... Rxc6 {[%clk 0:01:43.6]} 44. Kxa4 {[%clk 0:00:14]}
44... Re6 {[%clk 0:01:40.1]} 45. Bg2 {[%clk 0:00:12.2]} 45... h3 {[%clk
0:01:38.6]} 46. Bxh3 {[%clk 0:00:11.1]} 46... Rxe4+ {[%clk 0:01:37.8]} 47. Kb5
{[%clk 0:00:10.1]} 47... Rd4 {[%clk 0:01:34.1]} 48. Kc5 {[%clk 0:00:09.3]} 48...
Rd8 {[%clk 0:01:33.1]} 49. Kc6 {[%clk 0:00:08.3]} 49... f5 {[%clk 0:01:32.3]}
50. Bg2 {[%clk 0:00:06.9]} 50... Rd2 {[%clk 0:01:31.7]} 51. Bf3 {[%clk
0:00:05.4]} 51... Kf6 {[%clk 0:01:30.7]} 52. Bd5 {[%clk 0:00:04.2]} 52... g5
{[%clk 0:01:29.6]} 53. Kd6 {[%clk 0:00:02.8]} 53... g4 {[%clk 0:01:27.8]} 54.
Kc5 {[%clk 0:00:01.4]} 54... Ke5 {[%clk 0:01:26.1]} 55. Bg2 {[%clk 0:00:00.5]}
55... Rxg2 {[%clk 0:01:24.3]} 0-1